[Event "*** Titled Tuesday Blitz"]
[Site "Chess.com"]
[Date "2020.04.28"]
[Round "5"]
[White "GHANDEEVAM2003"]
[Black "Tiqr777"]
[Result "1-0"]
[WhiteElo "2850"]
[BlackElo "2596"]
[TimeControl "180+1"]
[EndTime "10:53:14 PDT"]
[Termination "GHANDEEVAM2003 won by resignation"]

1. d4 {[%clk 0:03:00.9]} 1... d5 {[%clk 0:02:58.5]} 2. c4 {[%clk 0:03:00.3]}
2... dxc4 {[%clk 0:02:58.8]} 3. e3 {[%clk 0:02:58.9]} 3... e6 {[%clk 0:02:59.2]}
4. Bxc4 {[%clk 0:02:57.7]} 4... Nf6 {[%clk 0:02:59.8]} 5. Nf3 {[%clk 0:02:55.4]}
5... c5 {[%clk 0:03:00.1]} 6. O-O {[%clk 0:02:53.4]} 6... Nc6 {[%clk 0:03:00.3]}
7. dxc5 {[%clk 0:02:52.2]} 7... Bxc5 {[%clk 0:03:00.7]} 8. Qxd8+ {[%clk
0:02:51.6]} 8... Kxd8 {[%clk 0:03:01.1]} 9. a3 {[%clk 0:02:50.9]} 9... a6 {[%clk
0:03:00.5]} 10. b4 {[%clk 0:02:50.6]} 10... Ba7 {[%clk 0:03:00.5]} 11. Bb2
{[%clk 0:02:49.7]} 11... Ke7 {[%clk 0:02:59.8]} 12. Nc3 {[%clk 0:02:44.2]} 12...
b5 {[%clk 0:02:59.6]} 13. Bd3 {[%clk 0:02:43.4]} 13... Bb7 {[%clk 0:03:00]} 14.
Ne4 {[%clk 0:02:43.6]} 14... Nxe4 {[%clk 0:02:58.1]} 15. Bxe4 {[%clk 0:02:44.5]}
15... f6 {[%clk 0:02:58.6]} 16. Rac1 {[%clk 0:02:42.3]} 16... Rac8 {[%clk
0:02:58.2]} 17. h4 {[%clk 0:02:39.8]} 17... Rhd8 {[%clk 0:02:53.9]} 18. Bxh7
{[%clk 0:02:36]} 18... a5 {[%clk 0:02:42.8]} 19. Be4 {[%clk 0:02:28.7]} 19...
axb4 {[%clk 0:02:39.9]} 20. axb4 {[%clk 0:02:28.6]} 20... f5 {[%clk 0:02:35.6]}
21. Bb1 {[%clk 0:02:25.5]} 21... g6 {[%clk 0:02:32.3]} 22. Ne5 {[%clk
0:02:16.9]} 22... Nxe5 {[%clk 0:02:18.8]} 23. Bxe5 {[%clk 0:02:17.8]} 23... Rd2
{[%clk 0:02:11.6]} 24. Rxc8 {[%clk 0:02:14.1]} 24... Bxc8 {[%clk 0:02:12.1]} 25.
Rc1 {[%clk 0:02:14.6]} 25... Bd7 {[%clk 0:02:12.3]} 26. Kf1 {[%clk 0:02:10.4]}
26... Bb6 {[%clk 0:02:09.5]} 27. Ke1 {[%clk 0:02:06.9]} 27... Rd5 {[%clk
0:02:09.7]} 28. Bb2 {[%clk 0:02:00.6]} 28... e5 {[%clk 0:01:42.4]} 29. Ba2
{[%clk 0:01:57.3]} 29... Rd3 {[%clk 0:01:42.5]} 30. Bxe5 {[%clk 0:01:57.2]}
30... Bxe3 {[%clk 0:01:42.3]} 31. Rc2 {[%clk 0:01:48.3]} 31... Bd4 {[%clk
0:01:36.8]} 32. Ke2 {[%clk 0:01:44.1]} 32... Bxe5 {[%clk 0:01:28.8]} 33. Kxd3
{[%clk 0:01:44]} 33... f4 {[%clk 0:01:28.7]} 34. Ke2 {[%clk 0:01:35.3]} 34...
Bf5 {[%clk 0:01:18.7]} 35. Rc5 {[%clk 0:01:33.5]} 1-0

[Event "*** Titled Tuesday Blitz"]
[Site "Chess.com"]
[Date "2020.04.28"]
[Round "5"]
[White "kingmonkey2006"]
[Black "woodhy"]
[Result "1-0"]
[WhiteElo "2596"]
[BlackElo "2355"]
[TimeControl "180+1"]
[EndTime "10:53:14 PDT"]
[Termination "kingmonkey2006 won by resignation"]

1. b3 {[%clk 0:03:00.9]} 1... Nf6 {[%clk 0:02:58.3]} 2. Bb2 {[%clk 0:03:01.3]}
2... g6 {[%clk 0:02:58.8]} 3. e4 {[%clk 0:03:01.5]} 3... Bg7 {[%clk 0:02:58.4]}
4. d3 {[%clk 0:03:01.6]} 4... O-O {[%clk 0:02:57.2]} 5. Nd2 {[%clk 0:03:02.2]}
5... d6 {[%clk 0:02:56.9]} 6. Ngf3 {[%clk 0:03:02.5]} 6... e5 {[%clk 0:02:57.2]}
7. Be2 {[%clk 0:03:02.8]} 7... Nc6 {[%clk 0:02:53.4]} 8. O-O {[%clk 0:03:02.8]}
8... Bg4 {[%clk 0:02:52.8]} 9. c3 {[%clk 0:03:02.8]} 9... Nh5 {[%clk 0:02:51.3]}
10. h3 {[%clk 0:03:02.3]} 10... Be6 {[%clk 0:02:50.5]} 11. d4 {[%clk 0:02:58.2]}
11... exd4 {[%clk 0:02:45.1]} 12. cxd4 {[%clk 0:02:59.1]} 12... Nf4 {[%clk
0:02:45]} 13. Re1 {[%clk 0:02:54.4]} 13... Nxe2+ {[%clk 0:02:44.1]} 14. Qxe2
{[%clk 0:02:54.2]} 14... Re8 {[%clk 0:02:42.4]} 15. Qd3 {[%clk 0:02:48.3]} 15...
Nb4 {[%clk 0:02:38.8]} 16. Qc3 {[%clk 0:02:47.6]} 16... c5 {[%clk 0:02:37.5]}
17. a3 {[%clk 0:02:44.6]} 17... Nc6 {[%clk 0:02:32.6]} 18. Qd3 {[%clk
0:02:43.3]} 18... Qb6 {[%clk 0:02:19.4]} 19. d5 {[%clk 0:02:13.2]} 19... Bxb2
{[%clk 0:02:16.9]} 20. Nc4 {[%clk 0:02:09.9]} 20... Qc7 {[%clk 0:02:11.3]} 21.
Nxb2 {[%clk 0:02:05.1]} 21... Bd7 {[%clk 0:01:38.6]} 22. dxc6 {[%clk 0:02:04.8]}
22... bxc6 {[%clk 0:01:39.5]} 23. Rad1 {[%clk 0:02:04]} 23... Re6 {[%clk
0:01:36.6]} 24. Nc4 {[%clk 0:02:03.7]} 24... Rd8 {[%clk 0:01:36.2]} 25. Nxd6
{[%clk 0:02:02.7]} 25... Bc8 {[%clk 0:01:28.2]} 26. e5 {[%clk 0:02:02.8]} 26...
f6 {[%clk 0:01:27]} 27. Qc3 {[%clk 0:01:56.7]} 27... fxe5 {[%clk 0:01:20.3]} 28.
Ne4 {[%clk 0:01:56.2]} 28... Rd5 {[%clk 0:01:12.3]} 29. Nxc5 {[%clk 0:01:56.3]}
29... Re7 {[%clk 0:01:05.5]} 30. Ne4 {[%clk 0:01:51.5]} 30... Be6 {[%clk
0:00:59.7]} 31. Nf6+ {[%clk 0:01:51.3]} 31... Kg7 {[%clk 0:00:56.4]} 32. Nxd5
{[%clk 0:01:52.2]} 32... Bxd5 {[%clk 0:00:55.3]} 33. Rxe5 {[%clk 0:01:52]} 1-0

[Event "*** Titled Tuesday Blitz"]
[Site "Chess.com"]
[Date "2020.04.28"]
[Round "5"]
[White "petrkostenko"]
[Black "Kimster98"]
[Result "1-0"]
[WhiteElo "2318"]
[BlackElo "2570"]
[TimeControl "180+1"]
[EndTime "10:53:14 PDT"]
[Termination "petrkostenko won by resignation"]

1. e4 {[%clk 0:03:00.9]} 1... e5 {[%clk 0:02:53.7]} 2. Nf3 {[%clk 0:03:00.8]}
2... Nf6 {[%clk 0:02:52.6]} 3. d3 {[%clk 0:02:59.4]} 3... Nc6 {[%clk 0:02:48.3]}
4. Nbd2 {[%clk 0:02:59.5]} 4... d5 {[%clk 0:02:45.8]} 5. c3 {[%clk 0:02:59.7]}
5... a5 {[%clk 0:02:42.6]} 6. Be2 {[%clk 0:02:59.7]} 6... Bc5 {[%clk 0:02:33.2]}
7. O-O {[%clk 0:02:58.5]} 7... O-O {[%clk 0:02:27.8]} 8. Qc2 {[%clk 0:02:46.7]}
8... Qe7 {[%clk 0:02:25.8]} 9. b3 {[%clk 0:02:46.5]} 9... h6 {[%clk 0:02:19.5]}
10. a3 {[%clk 0:02:46.4]} 10... Be6 {[%clk 0:02:18.8]} 11. Bb2 {[%clk
0:02:38.3]} 11... b5 {[%clk 0:02:17.9]} 12. b4 {[%clk 0:02:36.4]} 12... axb4
{[%clk 0:02:16.7]} 13. cxb4 {[%clk 0:02:29.6]} 13... Nd4 {[%clk 0:02:16.7]} 14.
Nxd4 {[%clk 0:02:25.9]} 14... Bxd4 {[%clk 0:02:17.6]} 15. Bxd4 {[%clk
0:02:25.5]} 15... exd4 {[%clk 0:02:18.5]} 16. e5 {[%clk 0:02:21.9]} 16... Nd7
{[%clk 0:02:16.7]} 17. f4 {[%clk 0:02:14.7]} 17... Nb6 {[%clk 0:02:07.6]} 18.
Nb3 {[%clk 0:02:11.1]} 18... f6 {[%clk 0:01:57.8]} 19. f5 {[%clk 0:02:04.3]}
19... Bc8 {[%clk 0:01:57.3]} 20. e6 {[%clk 0:02:04.6]} 20... Bb7 {[%clk
0:01:57.5]} 21. Nxd4 {[%clk 0:02:03]} 21... Rfc8 {[%clk 0:01:40.7]} 22. Rfc1
{[%clk 0:02:02.8]} 22... c6 {[%clk 0:01:40.3]} 23. Bh5 {[%clk 0:01:56.3]} 23...
Na4 {[%clk 0:01:38.7]} 24. Bf7+ {[%clk 0:01:55.6]} 24... Kh8 {[%clk 0:01:38.8]}
25. Qf2 {[%clk 0:01:50.9]} 25... c5 {[%clk 0:01:36.6]} 26. Ne2 {[%clk
0:01:48.1]} 26... cxb4 {[%clk 0:01:33.5]} 27. Nf4 {[%clk 0:01:48.7]} 27... Qd6
{[%clk 0:01:24.9]} 28. Qg3 {[%clk 0:01:41.2]} 28... Qb6+ {[%clk 0:01:18.7]} 29.
Kf1 {[%clk 0:01:40]} 29... Rxc1+ {[%clk 0:01:14.7]} 30. Rxc1 {[%clk 0:01:38.7]}
30... bxa3 {[%clk 0:01:15.1]} 31. Nh5 {[%clk 0:01:35.3]} 31... g5 {[%clk
0:01:01.5]} 32. fxg6 {[%clk 0:01:35.2]} 1-0

[Event "*** Titled Tuesday Blitz"]
[Site "Chess.com"]
[Date "2020.04.28"]
[Round "5"]
[White "fabianvivasz"]
[Black "Colombiano07"]
[Result "1-0"]
[WhiteElo "2401"]
[BlackElo "2221"]
[TimeControl "180+1"]
[EndTime "10:53:15 PDT"]
[Termination "fabianvivasz won by resignation"]

1. e4 {[%clk 0:03:00.9]} 1... e6 {[%clk 0:02:59.6]} 2. d4 {[%clk 0:02:59.8]}
2... d5 {[%clk 0:02:59.9]} 3. Nd2 {[%clk 0:03:00.3]} 3... c5 {[%clk 0:02:54.7]}
4. Ngf3 {[%clk 0:02:59.8]} 4... Nc6 {[%clk 0:02:51.3]} 5. exd5 {[%clk
0:02:58.7]} 5... Qxd5 {[%clk 0:02:52.2]} 6. Bc4 {[%clk 0:02:42.7]} 6... Qd7
{[%clk 0:02:52.1]} 7. Nb3 {[%clk 0:02:33.7]} 7... cxd4 {[%clk 0:02:48.4]} 8.
Nfxd4 {[%clk 0:02:32.1]} 8... Nxd4 {[%clk 0:02:48.8]} 9. Nxd4 {[%clk 0:02:29.1]}
9... a6 {[%clk 0:02:48.7]} 10. Be3 {[%clk 0:02:25.4]} 10... Qc7 {[%clk
0:02:47.7]} 11. Bb3 {[%clk 0:02:21.6]} 11... Nf6 {[%clk 0:02:47.1]} 12. Qf3
{[%clk 0:02:19.5]} 12... Bd7 {[%clk 0:02:38]} 13. O-O-O {[%clk 0:02:05]} 13...
Bc5 {[%clk 0:02:27.5]} 14. Bf4 {[%clk 0:01:33.8]} 14... Qb6 {[%clk 0:02:21.8]}
15. Be5 {[%clk 0:01:33.2]} 15... Be7 {[%clk 0:02:15.1]} 16. g4 {[%clk
0:01:21.2]} 16... Qc5 {[%clk 0:02:00.9]} 17. Rhe1 {[%clk 0:00:52.7]} 17... Bc6
{[%clk 0:01:31.7]} 18. Nxc6 {[%clk 0:00:51]} 18... bxc6 {[%clk 0:01:32.6]} 19.
Bd4 {[%clk 0:00:44.2]} 19... Qg5+ {[%clk 0:01:29]} 20. Be3 {[%clk 0:00:42.2]}
20... Qxg4 {[%clk 0:01:28]} 21. Qxc6+ {[%clk 0:00:41.6]} 1-0

[Event "*** Titled Tuesday Blitz"]
[Site "Chess.com"]
[Date "2020.04.28"]
[Round "5"]
[White "korkmaz16"]
[Black "KarstenHansch"]
[Result "1-0"]
[WhiteElo "2284"]
[BlackElo "2435"]
[TimeControl "180+1"]
[EndTime "10:53:32 PDT"]
[Termination "korkmaz16 won by resignation"]

1. e4 {[%clk 0:02:54.1]} 1... c6 {[%clk 0:03:00]} 2. d4 {[%clk 0:02:51.5]} 2...
d5 {[%clk 0:03:00.9]} 3. e5 {[%clk 0:02:50]} 3... Bf5 {[%clk 0:03:00.8]} 4. h4
{[%clk 0:02:50.3]} 4... h5 {[%clk 0:03:00.5]} 5. Ne2 {[%clk 0:02:50.6]} 5... e6
{[%clk 0:02:52.2]} 6. Ng3 {[%clk 0:02:49]} 6... Bg6 {[%clk 0:02:44.9]} 7. Be2
{[%clk 0:02:48.5]} 7... Be7 {[%clk 0:02:43.9]} 8. Bxh5 {[%clk 0:02:46.3]} 8...
Bxh5 {[%clk 0:02:38]} 9. Nxh5 {[%clk 0:02:45.2]} 9... g6 {[%clk 0:02:37.2]} 10.
Nf4 {[%clk 0:02:44.7]} 10... Rxh4 {[%clk 0:02:35.8]} 11. Rxh4 {[%clk 0:02:42.8]}
11... Bxh4 {[%clk 0:02:36.7]} 12. Qd3 {[%clk 0:02:37]} 12... Bg5 {[%clk
0:02:16]} 13. Nxe6 {[%clk 0:02:32.9]} 13... Qa5+ {[%clk 0:02:07.1]} 14. b4
{[%clk 0:02:30.6]} 14... Qxb4+ {[%clk 0:01:59.9]} 15. c3 {[%clk 0:02:29.4]}
15... Bxc1 {[%clk 0:01:33.7]} 16. cxb4 {[%clk 0:02:26.9]} 16... fxe6 {[%clk
0:01:33.6]} 17. Qxg6+ {[%clk 0:02:24]} 17... Kf8 {[%clk 0:01:33.8]} 18. Nd2
{[%clk 0:02:11.2]} 18... Bb2 {[%clk 0:01:33.4]} 19. Rb1 {[%clk 0:02:08.5]} 19...
Bxd4 {[%clk 0:01:33.6]} 20. Nf3 {[%clk 0:02:08.5]} 20... Bc3+ {[%clk 0:01:33.1]}
21. Ke2 {[%clk 0:02:06.7]} 21... Nd7 {[%clk 0:01:32.7]} 22. Ng5 {[%clk
0:02:03.9]} 22... Nxe5 {[%clk 0:01:29.5]} 23. Qxe6 {[%clk 0:01:50.2]} 23... Re8
{[%clk 0:01:00.8]} 24. Nh7+ {[%clk 0:01:48.4]} 24... Kg7 {[%clk 0:01:00.7]} 25.
Qxe8 {[%clk 0:01:48.6]} 25... Kxh7 {[%clk 0:01:00.9]} 26. Qf8 {[%clk 0:01:21.3]}
1-0

[Event "*** Titled Tuesday Blitz"]
[Site "Chess.com"]
[Date "2020.04.28"]
[Round "5"]
[White "TudorAnton"]
[Black "Baby_Legs"]
[Result "1-0"]
[WhiteElo "2519"]
[BlackElo "2692"]
[TimeControl "180+1"]
[EndTime "10:53:33 PDT"]
[Termination "TudorAnton won by resignation"]

1. d4 {[%clk 0:03:00.9]} 1... Nf6 {[%clk 0:02:59.3]} 2. c4 {[%clk 0:03:00.6]}
2... e6 {[%clk 0:02:59.6]} 3. Nc3 {[%clk 0:02:59]} 3... Bb4 {[%clk 0:02:59.5]}
4. Nf3 {[%clk 0:02:51.8]} 4... d6 {[%clk 0:02:54.8]} 5. g3 {[%clk 0:02:47.2]}
5... Bxc3+ {[%clk 0:02:52.3]} 6. bxc3 {[%clk 0:02:48.1]} 6... b6 {[%clk
0:02:52.4]} 7. Bg2 {[%clk 0:02:48.4]} 7... Bb7 {[%clk 0:02:52.9]} 8. O-O {[%clk
0:02:48.9]} 8... Nbd7 {[%clk 0:02:51.9]} 9. a4 {[%clk 0:02:46.5]} 9... a5 {[%clk
0:02:49.4]} 10. Ba3 {[%clk 0:02:45.5]} 10... O-O {[%clk 0:02:41]} 11. Re1 {[%clk
0:02:43.1]} 11... Ne4 {[%clk 0:02:36.8]} 12. Qc2 {[%clk 0:02:42.3]} 12... Rb8
{[%clk 0:02:22.5]} 13. Rab1 {[%clk 0:02:30.4]} 13... c5 {[%clk 0:02:18]} 14. Bc1
{[%clk 0:02:21.2]} 14... Qe7 {[%clk 0:02:07.9]} 15. Rd1 {[%clk 0:02:17.2]} 15...
Rfd8 {[%clk 0:01:57.1]} 16. Ne1 {[%clk 0:02:01.3]} 16... f5 {[%clk 0:01:53.7]}
17. Nd3 {[%clk 0:01:57]} 17... Nef6 {[%clk 0:01:20.5]} 18. Bxb7 {[%clk
0:01:52.4]} 18... Rxb7 {[%clk 0:01:21.4]} 19. Bg5 {[%clk 0:01:52.1]} 19... h6
{[%clk 0:01:17.1]} 20. Bxf6 {[%clk 0:01:51.7]} 20... Nxf6 {[%clk 0:01:18]} 21.
Nf4 {[%clk 0:01:44.1]} 21... Rc8 {[%clk 0:00:58.7]} 22. d5 {[%clk 0:01:40.7]}
22... exd5 {[%clk 0:00:55.1]} 23. Qxf5 {[%clk 0:01:39.2]} 23... Re8 {[%clk
0:00:49.8]} 24. Nxd5 {[%clk 0:01:38.9]} 24... Nxd5 {[%clk 0:00:47.6]} 25. Qxd5+
{[%clk 0:01:39.8]} 25... Qf7 {[%clk 0:00:47.1]} 26. Qxf7+ {[%clk 0:01:37.3]}
26... Kxf7 {[%clk 0:00:48]} 27. Rxd6 {[%clk 0:01:35.1]} 27... Re4 {[%clk
0:00:42.7]} 28. Rdxb6 {[%clk 0:01:30.5]} 28... Rxb6 {[%clk 0:00:41.4]} 29. Rxb6
{[%clk 0:01:31.4]} 29... Rxc4 {[%clk 0:00:41.7]} 30. Rb5 {[%clk 0:01:32]} 30...
Rxa4 {[%clk 0:00:39]} 31. Rxc5 {[%clk 0:01:32.2]} 1-0

[Event "*** Titled Tuesday Blitz"]
[Site "Chess.com"]
[Date "2020.04.28"]
[Round "5"]
[White "GMJustin"]
[Black "hedgehog280"]
[Result "0-1"]
[WhiteElo "2429"]
[BlackElo "2685"]
[TimeControl "180+1"]
[EndTime "10:53:35 PDT"]
[Termination "hedgehog280 won on time"]

1. d4 {[%clk 0:02:58.6]} 1... d6 {[%clk 0:02:58.2]} 2. Nc3 {[%clk 0:02:55.7]}
2... g6 {[%clk 0:02:58.8]} 3. e4 {[%clk 0:02:53.8]} 3... Bg7 {[%clk 0:02:58.8]}
4. f4 {[%clk 0:02:39.5]} 4... Nf6 {[%clk 0:02:56.5]} 5. Nf3 {[%clk 0:02:39]}
5... O-O {[%clk 0:02:55.2]} 6. a3 {[%clk 0:02:34.4]} 6... Nc6 {[%clk 0:02:37.6]}
7. e5 {[%clk 0:02:16.7]} 7... dxe5 {[%clk 0:02:33.4]} 8. dxe5 {[%clk 0:02:12.8]}
8... Qxd1+ {[%clk 0:02:27.1]} 9. Nxd1 {[%clk 0:02:06.2]} 9... Nd5 {[%clk
0:02:19]} 10. c4 {[%clk 0:01:59.4]} 10... Nb6 {[%clk 0:02:18.2]} 11. Nc3 {[%clk
0:01:32.5]} 11... f6 {[%clk 0:02:18.4]} 12. exf6 {[%clk 0:00:12.2]} 12... exf6
{[%clk 0:02:14.5]} 13. c5 {[%clk 0:00:10.9]} 13... Nd7 {[%clk 0:02:12.7]} 14.
Bc4+ {[%clk 0:00:10.9]} 14... Kh8 {[%clk 0:02:12.7]} 15. b4 {[%clk 0:00:11.2]}
15... f5 {[%clk 0:02:09.3]} 16. Bb2 {[%clk 0:00:10.5]} 16... a5 {[%clk
0:02:07.4]} 17. O-O-O {[%clk 0:00:02.9]} 17... axb4 {[%clk 0:02:02]} 18. axb4
{[%clk 0:00:03.1]} 18... Nxb4 {[%clk 0:02:02.6]} 19. Nb5 {[%clk 0:00:02.4]}
19... Bxb2+ {[%clk 0:01:56.7]} 20. Kxb2 {[%clk 0:00:02.4]} 20... Nxc5 {[%clk
0:01:57.3]} 21. Nxc7 {[%clk 0:00:02.1]} 21... Ra2+ {[%clk 0:01:57.7]} 22. Kb1
{[%clk 0:00:01.5]} 22... Rxg2 {[%clk 0:01:51.9]} 23. Ne5 {[%clk 0:00:01.3]}
23... Na4 {[%clk 0:01:49.2]} 0-1

[Event "*** Titled Tuesday Blitz"]
[Site "Chess.com"]
[Date "2020.04.28"]
[Round "5"]
[White "almo64"]
[Black "Sashadav97"]
[Result "1-0"]
[WhiteElo "2833"]
[BlackElo "2746"]
[TimeControl "180+1"]
[EndTime "10:53:38 PDT"]
[Termination "almo64 won by resignation"]

1. e4 {[%clk 0:03:00.9]} 1... c5 {[%clk 0:03:00]} 2. Nc3 {[%clk 0:03:00.3]} 2...
Nc6 {[%clk 0:02:59.8]} 3. Nf3 {[%clk 0:02:56.3]} 3... d6 {[%clk 0:02:59.5]} 4.
d4 {[%clk 0:02:55.9]} 4... cxd4 {[%clk 0:03:00.4]} 5. Nxd4 {[%clk 0:02:56.3]}
5... Nf6 {[%clk 0:03:00.8]} 6. Bg5 {[%clk 0:02:55.3]} 6... e6 {[%clk 0:02:59.9]}
7. Qd2 {[%clk 0:02:55.2]} 7... a6 {[%clk 0:02:59.8]} 8. Nxc6 {[%clk 0:02:55]}
8... bxc6 {[%clk 0:02:59.4]} 9. O-O-O {[%clk 0:02:55.3]} 9... Be7 {[%clk
0:02:58.8]} 10. Bxf6 {[%clk 0:02:55.5]} 10... gxf6 {[%clk 0:02:51.2]} 11. Bc4
{[%clk 0:02:55]} 11... Qa5 {[%clk 0:02:42.8]} 12. Kb1 {[%clk 0:02:54.4]} 12...
Rb8 {[%clk 0:02:36.9]} 13. Bb3 {[%clk 0:02:53.4]} 13... h5 {[%clk 0:02:34.2]}
14. f4 {[%clk 0:02:52.3]} 14... Bd7 {[%clk 0:02:05]} 15. Rhe1 {[%clk 0:02:51.4]}
15... h4 {[%clk 0:02:02.8]} 16. Re3 {[%clk 0:02:46.8]} 16... Qc7 {[%clk
0:01:57]} 17. f5 {[%clk 0:02:38.8]} 17... e5 {[%clk 0:01:34.3]} 18. Qe1 {[%clk
0:02:32.5]} 18... a5 {[%clk 0:01:24.4]} 19. Rh3 {[%clk 0:02:30.9]} 19... Rb4
{[%clk 0:01:22.4]} 20. Rxh4 {[%clk 0:02:24.8]} 20... Rxh4 {[%clk 0:01:15.8]} 21.
Qxh4 {[%clk 0:02:24.6]} 21... a4 {[%clk 0:00:46.1]} 22. Bxa4 {[%clk 0:02:24.7]}
22... d5 {[%clk 0:00:32.7]} 23. Qh8+ {[%clk 0:02:18.9]} 23... Bf8 {[%clk
0:00:33]} 24. Qxf6 {[%clk 0:02:01.3]} 24... d4 {[%clk 0:00:27.7]} 25. Bb3 {[%clk
0:01:59.2]} 25... Rxb3 {[%clk 0:00:27.4]} 26. axb3 {[%clk 0:01:59.2]} 26... dxc3
{[%clk 0:00:27.8]} 27. bxc3 {[%clk 0:01:59.2]} 27... Qa5 {[%clk 0:00:20.4]} 28.
Rxd7 {[%clk 0:01:51.4]} 28... Kxd7 {[%clk 0:00:19.1]} 29. Qxf7+ {[%clk
0:01:51.8]} 29... Be7 {[%clk 0:00:19.6]} 30. f6 {[%clk 0:01:52.1]} 1-0

[Event "*** Titled Tuesday Blitz"]
[Site "Chess.com"]
[Date "2020.04.28"]
[Round "5"]
[White "Klavdia_Nik"]
[Black "VALPARAISO37"]
[Result "0-1"]
[WhiteElo "2037"]
[BlackElo "2362"]
[TimeControl "180+1"]
[EndTime "10:53:38 PDT"]
[Termination "VALPARAISO37 won on time"]

1. Nf3 {[%clk 0:03:00.9]} 1... d5 {[%clk 0:02:59.6]} 2. c4 {[%clk 0:03:00.9]}
2... e6 {[%clk 0:02:59.8]} 3. b3 {[%clk 0:03:01.2]} 3... Be7 {[%clk 0:02:57.2]}
4. Bb2 {[%clk 0:03:01.5]} 4... Bf6 {[%clk 0:02:57.5]} 5. Nc3 {[%clk 0:02:57]}
5... Ne7 {[%clk 0:02:56]} 6. g3 {[%clk 0:02:57.3]} 6... c5 {[%clk 0:02:54.7]} 7.
Bg2 {[%clk 0:02:56.6]} 7... Nbc6 {[%clk 0:02:53.4]} 8. O-O {[%clk 0:02:56.1]}
8... O-O {[%clk 0:02:53.3]} 9. d3 {[%clk 0:02:53.2]} 9... g6 {[%clk 0:02:52.2]}
10. Na4 {[%clk 0:02:37.5]} 10... Bxb2 {[%clk 0:02:51.3]} 11. Nxb2 {[%clk
0:02:38]} 11... d4 {[%clk 0:02:51]} 12. a3 {[%clk 0:02:23.3]} 12... a5 {[%clk
0:02:50.1]} 13. Na4 {[%clk 0:02:15.2]} 13... b6 {[%clk 0:02:48.9]} 14. Qc2
{[%clk 0:01:53]} 14... Bb7 {[%clk 0:02:48.1]} 15. Rfb1 {[%clk 0:01:52.6]} 15...
Qc7 {[%clk 0:02:47.3]} 16. e3 {[%clk 0:01:20.8]} 16... e5 {[%clk 0:02:45.5]} 17.
exd4 {[%clk 0:01:19.9]} 17... exd4 {[%clk 0:02:41.4]} 18. Re1 {[%clk 0:01:16.3]}
18... Nf5 {[%clk 0:02:39.2]} 19. Re2 {[%clk 0:01:12.4]} 19... Rae8 {[%clk
0:02:38.9]} 20. Rae1 {[%clk 0:01:12.5]} 20... Rxe2 {[%clk 0:02:39.1]} 21. Qxe2
{[%clk 0:01:07.4]} 21... Kg7 {[%clk 0:02:38.9]} 22. h3 {[%clk 0:01:06.1]} 22...
Nd6 {[%clk 0:02:33.7]} 23. Ne5 {[%clk 0:01:03.6]} 23... Re8 {[%clk 0:02:31]} 24.
Qf3 {[%clk 0:00:21.8]} 24... f6 {[%clk 0:02:22.3]} 25. Nxc6 {[%clk 0:00:19.6]}
25... Rxe1+ {[%clk 0:02:22.2]} 26. Kh2 {[%clk 0:00:20.1]} 26... Nf5 {[%clk
0:02:18.4]} 27. Qd5 {[%clk 0:00:05.6]} 27... Nh4 {[%clk 0:02:09.4]} 28. Be4
{[%clk 0:00:02.2]} 28... Rf1 {[%clk 0:02:00.5]} 0-1

[Event "*** Titled Tuesday Blitz"]
[Site "Chess.com"]
[Date "2020.04.28"]
[Round "5"]
[White "lifeissofun"]
[Black "Natalya_Buksa"]
[Result "0-1"]
[WhiteElo "2351"]
[BlackElo "2528"]
[TimeControl "180+1"]
[EndTime "10:53:43 PDT"]
[Termination "Natalya_Buksa won by resignation"]

1. e4 {[%clk 0:03:00.9]} 1... c5 {[%clk 0:02:59.4]} 2. Nf3 {[%clk 0:03:01.3]}
2... Nc6 {[%clk 0:02:59.9]} 3. d4 {[%clk 0:03:01.9]} 3... cxd4 {[%clk
0:03:00.8]} 4. Nxd4 {[%clk 0:03:02.5]} 4... Nf6 {[%clk 0:03:01.5]} 5. Nc3 {[%clk
0:03:02.6]} 5... e5 {[%clk 0:03:02]} 6. Ndb5 {[%clk 0:03:01.7]} 6... d6 {[%clk
0:03:02.5]} 7. Nd5 {[%clk 0:03:02.2]} 7... Nxd5 {[%clk 0:03:01.3]} 8. exd5
{[%clk 0:03:03.1]} 8... Nb8 {[%clk 0:03:02.1]} 9. a4 {[%clk 0:03:02.4]} 9... Nd7
{[%clk 0:03:00.5]} 10. Be2 {[%clk 0:03:01.4]} 10... Be7 {[%clk 0:03:01]} 11. O-O
{[%clk 0:03:01.5]} 11... a6 {[%clk 0:03:00]} 12. Na3 {[%clk 0:03:01.1]} 12...
O-O {[%clk 0:02:59]} 13. f4 {[%clk 0:03:00.7]} 13... f5 {[%clk 0:02:58.4]} 14.
Kh1 {[%clk 0:03:00.3]} 14... Bf6 {[%clk 0:02:58.4]} 15. c4 {[%clk 0:02:58.8]}
15... Qe8 {[%clk 0:02:57.7]} 16. Rb1 {[%clk 0:02:56.4]} 16... a5 {[%clk
0:02:56.4]} 17. Nb5 {[%clk 0:02:54.7]} 17... Qe7 {[%clk 0:02:55.7]} 18. b3
{[%clk 0:02:50.3]} 18... Nc5 {[%clk 0:02:55.3]} 19. Ba3 {[%clk 0:02:44.7]} 19...
b6 {[%clk 0:02:55.2]} 20. Bxc5 {[%clk 0:02:36.4]} 20... bxc5 {[%clk 0:02:56.1]}
21. fxe5 {[%clk 0:02:27.4]} 21... Bxe5 {[%clk 0:02:56]} 22. Rf3 {[%clk 0:02:23]}
22... g5 {[%clk 0:02:36.1]} 23. Bd3 {[%clk 0:02:19.2]} 23... g4 {[%clk
0:02:34.2]} 24. Re3 {[%clk 0:02:09.9]} 24... f4 {[%clk 0:02:17.5]} 25. Re1
{[%clk 0:02:08.6]} 25... Qh4 {[%clk 0:02:13.2]} 26. Qc2 {[%clk 0:01:54.2]} 26...
f3 {[%clk 0:02:08.7]} 27. gxf3 {[%clk 0:01:50]} 27... Rxf3 {[%clk 0:01:49.6]}
28. Re2 {[%clk 0:01:18.7]} 28... Bd7 {[%clk 0:01:46.8]} 29. Nc7 {[%clk
0:01:10.1]} 29... Raf8 {[%clk 0:01:47.1]} 30. Rg2 {[%clk 0:01:07.2]} 30... Rf2
{[%clk 0:01:43.1]} 31. Bxh7+ {[%clk 0:00:45]} 31... Kh8 {[%clk 0:01:40.8]} 0-1